bitfinex-derivatives/quotes_SOLF0:USTF0_20260312
["timestamp","ask_amount","ask_price","bid_price","bid_amount"]
[1773305239262,27.66941863,85.817,85.782,10.491]
[1773305241464,27.66941863,85.817,85.773,10.492]
[1773305246676,27.81078561,85.809,85.768,44.04]
[1773305246874,27.81078561,85.809,85.764,10.493]
[1773305247370,27.85979506,85.799,85.754,10.494]
[1773305254074,27.85927376,85.784,85.754,10.494]
[1773305261083,0.07616997,85.785,85.754,10.494]
[1773305261481,0.07616997,85.785,85.744,44.04]
[1773305261482,27.95026751,85.785,85.745,10.495]
[1773305263802,0.07616997,85.785,85.752,10.494]
[1773305266394,0.07616997,85.785,85.764,10.493]
[1773305269198,27.79124412,85.784,85.744,44.04]
[1773305271003,27.79124412,85.784,85.745,10.495]
[1773305271302,27.79124412,85.784,85.744,44.04]
[1773305271899,27.79124412,85.784,85.745,10.495]
[1773305280511,0.07616997,85.785,85.75,2.53614408]
[1773305280813,0.07616997,85.785,85.744,44.04]
[1773305280814,28.00724683,85.785,85.744,44.04]
[1773305282114,28.00724683,85.785,85.753,10.494]
[1773305283020,28.00724683,85.785,85.744,54.535]
[1773305284512,28.00724683,85.785,85.744,44.04]
[1773305285921,28.00724683,85.785,85.749,10.495]
[1773305295829,28.00724683,85.785,85.744,44.04]
[1773305296624,27.7779279,85.779,85.731,10.497]
[1773305297120,27.7779279,85.779,85.73,2.53685836]
[1773305297422,27.7779279,85.779,85.744,10.495]
[1773305298529,0.07800925,85.77,85.744,10.495]
[1773305311938,0.07800925,85.77,85.752,10.494]
[1773305314441,0.07800925,85.77,85.759,10.493]
[1773305314735,27.76965155,85.809,85.75,2.53685836]
[1773305315839,27.76965155,85.809,85.758,10.494]
[1773305316938,27.76965155,85.809,85.775,0.07546885]
[1773305337265,27.76420042,85.829,85.777,10.491]
[1773305337564,27.76420042,85.829,85.78,2.53685836]
[1773305337760,27.76420042,85.829,85.77,2.53685836]
[1773305338258,27.76420042,85.829,85.796,0.07607754]
[1773305340664,27.78100136,85.819,85.796,0.07607754]
[1773305347971,27.78775976,85.829,85.796,0.07607754]
[1773305348368,27.7876847,85.839,85.796,0.07607754]
[1773305348773,27.7876847,85.839,85.8,2.53438786]
[1773305349272,27.73271017,85.849,85.81,2.53438786]
[1773305349467,27.73271017,85.869,85.81,2.53438786]
[1773305349669,27.73271017,85.869,85.82,2.53438786]
[1773305349869,27.73271017,85.869,85.83,2.53438786]
[1773305350471,27.73271017,85.869,85.84,2.53438786]
[1773305350673,2.53438786,85.89,85.84,2.53438786]
[1773305350674,27.7326645,85.889,85.84,2.53438786]
[1773305350873,27.7326645,85.889,85.841,0.0742194]
[1773305354577,27.73537547,85.879,85.841,0.0742194]
[1773305360689,27.73537547,85.879,85.842,10.483]
[1773305360980,27.70038086,85.893,85.85,2.53438786]
[1773305361987,27.70038086,85.893,85.851,10.482]
[1773305367984,27.70038086,85.893,85.863,0.07759061]
[1773305372684,10.473,85.929,85.863,0.07759061]
[1773305372685,27.6554816,85.906,85.865,10.48]
[1773305372989,27.6554816,85.906,85.87,2.53438786]
[1773305373189,27.65553328,85.925,85.88,2.53438786]
[1773305373989,27.65553328,85.925,85.894,0.07712494]
[1773305378790,27.65553328,85.925,85.898,10.476]
[1773305379392,27.67406053,85.943,85.908,10.475]
[1773305380687,27.67404884,85.965,85.872,20.96]
[1773305380887,27.67404884,85.965,85.83,489.312]
[1773305380888,27.67404884,85.939,85.89,2.53438786]
[1773305381084,27.67404884,85.939,85.88,2.53438786]
[1773305381886,27.67404884,85.939,85.897,10.477]
[1773305382088,27.67404884,85.939,85.901,0.07390236]
[1773305383394,27.70433015,85.929,85.833,34.97]
[1773305383702,27.66737897,85.919,85.86,2.53438786]
[1773305383897,27.66737897,85.919,85.871,10.48]
[1773305388995,27.66737897,85.919,85.88,10.479]
[1773305393599,27.66737897,85.919,85.889,10.478]
[1773305395103,27.66737897,85.919,85.88,10.479]
[1773305396303,27.66737897,85.919,85.871,10.48]
[1773305397305,27.66737897,85.919,85.88,10.479]
[1773305398100,10.467,85.974,85.906,10.476]
[1773305398306,2.53438786,85.93,85.87,2.53438786]
[1773305400000,2.53438786,85.93,85.886,10.478]
[1773305400200,18.48096168,85.929,85.886,10.478]
[1773305400603,18.48096168,85.929,85.89,2.53438786]
[1773305400803,18.48096168,85.929,85.9,2.53438786]
[1773305401003,18.48096168,85.929,85.89,13.01138786]
[1773305401208,18.48096168,85.929,85.87,2.53438786]
[1773305401608,18.48096168,85.929,85.88,2.53438786]
[1773305401809,18.48096168,85.929,85.883,10.478]
[1773305402398,18.4022114,85.919,85.87,2.53438786]
[1773305402707,18.4022114,85.919,85.88,2.53438786]
[1773305404110,18.4022114,85.919,85.882,10.478]
[1773305405105,18.4022114,85.919,85.891,10.477]
[1773305411706,18.4022114,85.919,85.854,43.98]
[1773305411707,18.4022114,85.919,85.882,10.478]
[1773305416018,18.28995867,85.909,85.882,10.478]
[1773305417219,18.28995867,85.909,85.835,70.92379136]
[1773305417220,18.28995867,85.909,85.873,10.479]
[1773305417716,18.21654305,85.909,85.873,10.479]
[1773305422016,18.20095867,85.939,85.88,2.52802218]
[1773305422217,18.20095867,85.939,85.9,2.52802218]
[1773305423920,18.20095867,85.939,85.9,13.00402218]
[1773305424121,18.20095867,85.939,85.9,10.476]
[1773305425723,18.02465905,85.919,85.861,28.81899245]
[1773305425922,18.02465905,85.919,85.87,2.52802218]
[1773305426228,18.02465905,85.919,85.88,2.52802218]
[1773305426627,18.02465905,85.919,85.884,10.478]
[1773305427521,18.02465905,85.919,85.893,10.477]
[1773305428626,18.02465905,85.919,85.87,2.52802218]
[1773305429126,18.02465905,85.919,85.86,2.52802218]
[1773305429318,18.02465905,85.919,85.87,2.52802218]
[1773305429825,18.02465905,85.919,85.878,10.479]
[1773305431227,18.02465905,85.919,85.862,10.481]
[1773305432026,18.02465905,85.919,85.871,10.48]
[1773305441336,18.02465905,85.919,85.88,10.479]
[1773305455942,0.07365346,85.908,85.88,10.479]
[1773305456144,18.10674362,85.908,85.88,10.479]
[1773305461648,18.10674362,85.908,85.871,10.48]
[1773305462049,18.10674362,85.908,85.86,2.52802218]
[1773305462349,18.03309016,85.908,85.86,2.52802218]
[1773305463843,18.03309016,85.908,85.869,10.48]
[1773305464353,0.07344702,85.893,85.869,10.48]
[1773305464653,18.1997266,85.893,85.869,10.48]
[1773305465849,0.07344702,85.893,85.869,10.48]
[1773305483070,18.08552081,85.913,85.877,10.479]
[1773305487676,18.08552081,85.913,85.868,10.48]
[1773305488767,18.08552081,85.913,85.882,0.07417397]
[1773305489675,9.04467717,85.938,85.882,0.07417397]
[1773305489676,18.10407995,85.938,85.89,2.52951002]
[1773305489979,18.10407995,85.938,85.882,0.07417397]
[1773305490177,18.10407995,85.938,85.88,2.52951002]
[1773305490579,18.10407995,85.938,85.901,0.07630096]
[1773305499284,18.10407995,85.938,85.855,28.81899245]
[1773305499285,17.85805375,85.929,85.871,10.48]
[1773305499488,17.85805375,85.919,85.871,10.48]
[1773305501186,0.07634212,85.904,85.871,10.48]
[1773305513193,0.07634212,85.904,85.871,32.19378708]
[1773305513894,0.07634212,85.904,85.879,10.479]
[1773305514390,0.07634212,85.904,85.889,10.478]
[1773305514693,17.94335967,85.938,85.88,24.2432971]
[1773305515295,17.94335967,85.938,85.88,2.52951002]
[1773305515894,17.94335967,85.938,85.888,10.478]
[1773305516390,17.94340213,85.929,85.888,10.478]
[1773305516693,17.94340213,85.929,85.878,10.479]
[1773305516893,10.472,85.938,85.865,21.71378708]
[1773305516894,17.94340213,85.909,85.865,21.71378708]
[1773305517094,17.94340213,85.909,85.864,21.71378708]
[1773305517294,17.94340213,85.909,85.865,21.71378708]
[1773305518000,17.94340213,85.909,85.878,0.07688926]
[1773305524593,17.94340213,85.909,85.858,10.481]
[1773305526096,0.07718087,85.892,85.858,10.481]
[1773305526299,17.9858283,85.919,85.87,2.52951002]
[1773305527605,17.9858283,85.919,85.87,2.5281956]
[1773305527796,17.9858283,85.919,85.882,10.478]
[1773305528309,17.98375512,85.93,85.89,2.5281956]
[1773305530107,17.98375512,85.93,85.893,10.477]
[1773305532109,17.95009234,85.946,85.893,10.477]
[1773305532809,211.15077223,85.939,85.893,10.477]
[1773305533009,17.95005602,85.938,85.893,10.477]
[1773305533904,17.95005602,85.938,85.907,0.07606944]
[1773305547614,193.20071621,85.939,85.908,10.475]
[1773305549618,193.20071621,85.939,85.907,0.07606944]
[1773305550013,211.1859692,85.939,85.907,0.07606944]
[1773305550221,17.98522933,85.938,85.907,0.07606944]
[1773305557033,17.98522933,85.938,85.88,2.5281956]
[1773305557034,17.98522933,85.938,85.887,10.478]
[1773305558432,0.07484838,85.921,85.887,10.478]
[1773305560836,17.98913192,85.92,85.887,10.478]
[1773305561643,17.98913192,85.92,85.877,10.479]
[1773305561843,17.98913192,85.92,85.88,2.5281956]
[1773305562842,17.98913192,85.92,85.882,10.478]
[1773305563347,18.0157452,85.938,85.89,2.5281956]
[1773305564849,18.0157452,85.938,85.893,10.477]
[1773305565645,0.07522925,85.924,85.893,10.477]
[1773305568242,0.07522925,85.924,85.901,10.476]
[1773305569949,18.26299772,85.923,85.901,10.476]
[1773305574748,18.26299772,85.923,85.893,21.71378708]
[1773305576053,18.26299772,85.923,85.896,10.477]
[1773305581955,0.07522925,85.924,85.909,10.475]
[1773305582255,18.22227614,85.934,85.909,10.475]
[1773305585661,18.22227614,85.934,85.901,0.07431364]
[1773305586456,18.22227614,85.934,85.903,10.476]
[1773305597471,18.22227614,85.934,85.911,10.475]
[1773305597967,193.20071621,85.939,85.919,10.474]
[1773305598567,18.26549272,85.954,85.927,10.473]
[1773305598964,62.24549272,85.953,85.927,10.473]
[1773305599366,18.22221253,85.952,85.927,10.473]
[1773305600266,18.22240313,85.949,85.918,10.474]
[1773305600573,18.22240313,85.949,85.898,21.71378708]
[1773305601868,18.22240313,85.949,85.909,10.475]
[1773305602474,18.22240313,85.949,85.898,21.71378708]
[1773305602773,18.22240313,85.949,85.9,2.52752731]
[1773305603665,18.22240313,85.949,85.916,0.07418384]
[1773305603866,18.22240313,85.949,85.917,10.474]
[1773305608477,18.22240313,85.949,85.916,0.07418384]
[1773305608478,18.16038016,85.972,85.916,0.07418384]
[1773305608672,18.16038016,85.969,85.916,0.07418384]
[1773305608876,18.16038016,85.959,85.916,0.07418384]
[1773305609080,18.16038016,85.959,85.9,2.52752731]
[1773305609081,18.16038016,85.959,85.902,21.71378708]
[1773305609979,18.16038016,85.959,85.916,10.474]
[1773305614281,18.16038016,85.959,85.929,0.07478634]
[1773305618277,18.16038016,85.959,85.93,10.473]
[1773305619679,54.425,85.995,85.929,0.07478634]
[1773305619680,18.08894924,85.993,85.94,2.52752731]
[1773305619979,18.08894924,85.989,85.93,2.52752731]
[1773305621083,18.08894924,85.989,85.932,10.472]
[1773305623791,17.97787207,85.968,85.942,10.471]
[1773305623987,17.97787207,85.968,85.93,2.52752731]
[1773305624687,18.05119616,85.958,85.92,13.00152731]
[1773305624886,18.05119616,85.958,85.92,10.474]
[1773305625288,17.97786413,85.958,85.92,10.474]
[1773305625788,17.97786413,85.958,85.92,13.00152731]
[1773305626692,17.97786413,85.958,85.92,10.474]
[1773305628394,17.90912656,85.974,85.93,2.52752731]
[1773305629189,17.83639029,85.961,85.93,2.52752731]
[1773305629894,17.83639029,85.961,85.92,2.52752731]
[1773305630996,17.83639029,85.961,85.921,10.474]
[1773305636796,17.83639029,85.961,85.912,10.475]
[1773305637099,17.88009084,85.959,85.912,10.475]
[1773305639304,17.88009084,85.959,85.911,43.96]
[1773305641001,17.88009084,85.959,85.912,10.475]
[1773305641602,0.07345031,85.944,85.912,10.475]
[1773305643605,18.01083573,85.944,85.911,43.96]
[1773305645705,18.01083573,85.944,85.912,10.475]
[1773305646609,0.07345031,85.944,85.912,10.475]
[1773305650910,0.07345031,85.944,85.92,10.474]
[1773305653813,0.07345031,85.944,85.911,54.435]
[1773305655511,18.01946381,85.943,85.905,21.71378708]
[1773305655713,18.01946381,85.943,85.906,43.96]
[1773305656713,0.07345031,85.944,85.91,2.52624781]
[1773305657919,0.07345031,85.944,85.913,10.475]
[1773305659716,18.08797172,85.944,85.906,43.96]
[1773305659916,18.08797172,85.944,85.907,43.96]
[1773305662920,0.07345031,85.944,85.91,2.52624781]
[1773305664028,0.07345031,85.944,85.911,10.475]
[1773305673731,18.07031188,85.943,85.907,43.96]
[1773305676031,0.07345031,85.944,85.91,2.52624781]
[1773305676934,0.07345031,85.944,85.914,10.475]
[1773305681437,0.07345031,85.944,85.907,43.96]
[1773305682736,22.66246536,85.98,85.912,21.71378708]
[1773305683035,25.18871317,85.98,85.92,2.52624781]
[1773305683236,22.66246536,85.969,85.919,43.96]
[1773305683426,22.66246536,85.969,85.916,43.96]
[1773305683625,22.62932447,85.967,85.916,43.96]
[1773305685837,22.62932447,85.967,85.92,2.52624781]
[1773305686036,22.62932447,85.967,85.921,21.71378708]
[1773305686342,22.62932447,85.967,85.92,24.24003489]
[1773305686828,22.62932447,85.967,85.92,2.52624781]
[1773305688932,22.62932447,85.967,85.935,0.07392008]
[1773305692839,22.3679488,85.959,85.916,43.96]
[1773305696844,0.07391562,85.946,85.916,43.96]
[1773305708141,22.48699633,85.945,85.916,43.96]
[1773305715657,0.07391562,85.946,85.916,43.96]
[1773305721871,10.469,85.961,85.916,43.96]
[1773305722170,22.5276437,85.957,85.916,43.96]
[1773305724661,10.468,85.967,85.916,43.96]
[1773305725072,33.04579077,85.967,85.916,43.96]
[1773305725368,10.469,85.962,85.916,43.96]
[1773305725573,33.0465476,85.962,85.916,43.96]
[1773305725970,22.5775476,85.961,85.916,43.96]
[1773305726272,22.5775476,85.961,85.93,0.07512958]
[1773305728672,22.65427287,85.958,85.93,0.07512958]
[1773305728868,22.65427287,85.949,85.916,43.96]
[1773305729873,10.471,85.945,85.916,43.96]
[1773305730676,0.07484245,85.939,85.916,43.96]
[1773305736980,0.07484245,85.939,85.895,43.96]
[1773305737879,22.69830559,85.936,85.895,43.96]
[1773305738473,22.69827651,85.933,85.888,43.96]
[1773305740177,0.07490745,85.919,85.89,2.52711866]
[1773305740379,0.07490745,85.919,85.89,24.24090574]
[1773305740781,0.07490745,85.919,85.89,2.52711866]
[1773305750283,22.7038835,85.943,85.89,13.00411866]
[1773305750484,22.7038835,85.943,85.89,34.71790574]
[1773305751086,22.7038835,85.943,85.9,2.52711866]
[1773305752582,22.7038835,85.943,85.896,21.71378708]
[1773305755594,22.75117642,85.942,85.896,21.71378708]
[1773305756290,22.75117642,85.942,85.894,21.71378708]
[1773305756791,33.22315522,85.939,85.894,21.71378708]
[1773305756992,22.75115522,85.938,85.894,21.71378708]
[1773305757386,22.75115522,85.938,85.908,0.07553]
[1773305769002,10.47,85.948,85.908,0.07553]
[1773305769199,33.14889683,85.948,85.908,0.07553]
[1773305769504,22.63404237,85.947,85.908,0.07553]
[1773305775710,22.67872933,85.943,85.908,0.07553]
[1773305776913,22.67870667,85.941,85.908,0.07553]
[1773305784116,22.67870667,85.941,85.888,65.67378708]
[1773305784117,22.67459383,85.937,85.888,65.67378708]
[1773305784319,22.67459383,85.937,85.888,43.96]
[1773305784913,22.63680698,85.934,85.888,43.96]
[1773305785416,10.472,85.935,85.885,21.71378708]
[1773305785417,22.63709971,85.929,85.885,21.71378708]
[1773305785617,22.63709971,85.929,85.884,21.71378708]
[1773305788117,22.63709971,85.929,85.89,2.52702642]
[1773305788324,22.63709971,85.929,85.89,13.00402642]
[1773305788717,0.07620125,85.915,85.89,13.00402642]
[1773305790023,0.07620125,85.915,85.895,10.477]
[1773305791025,0.07620125,85.915,85.892,21.71378708]
[1773305791425,0.07620125,85.915,85.884,21.71378708]
[1773305791826,0.07620125,85.915,85.886,21.71378708]
[1773305794928,0.07620125,85.915,85.887,10.478]
[1773305796427,0.07620125,85.915,85.885,21.71378708]
[1773305796828,22.60531288,85.915,85.886,43.98]
[1773305799830,0.07620125,85.915,85.89,2.52702642]
[1773305800931,0.07620125,85.915,85.891,10.477]
[1773305802025,0.07620125,85.915,85.895,21.71378708]
[1773305803726,0.07620125,85.915,85.896,10.477]
[1773305804029,10.472,85.939,85.896,10.477]
[1773305804030,22.55875264,85.937,85.9,21.71378708]
[1773305804627,22.55875264,85.937,85.899,21.71378708]
[1773305806627,22.55875264,85.937,85.909,0.07417765]
[1773305810735,10.472,85.936,85.909,0.07417765]
[1773305811135,22.68372145,85.935,85.909,0.07417765]
[1773305812434,10.472,85.934,85.909,0.07417765]
[1773305812634,22.68497905,85.933,85.909,0.07417765]
[1773305816435,22.6412527,85.931,85.888,43.98]
[1773305816632,22.6412527,85.931,85.889,43.98]
[1773305816838,22.6412527,85.931,85.89,2.52702642]
[1773305817844,33.1142527,85.931,85.891,10.477]
[1773305818042,22.69712855,85.93,85.891,10.477]
[1773305818341,0.07419858,85.919,85.891,10.477]
[1773305823341,0.07419858,85.919,85.89,2.52702642]
[1773305823643,22.6941901,85.939,85.892,21.71378708]
[1773305824944,22.69418127,85.936,85.907,0.07428242]
[1773305825437,22.69418127,85.936,85.898,10.476]
[1773305825944,22.69418127,85.936,85.913,0.0755016]
[1773305837052,22.60667064,85.932,85.913,0.0755016]
[1773305840556,22.62196443,85.949,85.913,0.0755016]
[1773305840956,10.472,85.933,85.913,0.0755016]
[1773305842257,22.62196443,85.94,85.913,0.0755016]
[1773305844055,22.62506399,85.938,85.913,0.0755016]
[1773305845559,22.62734986,85.931,85.913,0.0755016]
[1773305846257,22.62734986,85.927,85.895,43.98]
[1773305848961,0.07414872,85.92,85.895,43.98]
[1773305850461,22.62688574,85.919,85.895,43.98]
[1773305852263,0.07414872,85.92,85.895,54.457]
[1773305860968,0.07414872,85.92,85.895,43.98]
[1773305869378,22.65634335,85.92,85.895,43.98]
[1773305898508,22.65634335,85.92,85.888,10.478]
[1773305898803,22.65634335,85.92,85.892,10.477]
[1773305905714,11.70235519,85.918,85.874,21.57188041]
[1773305905916,11.70235519,85.918,85.88,2.52771489]
[1773305906809,11.70235519,85.918,85.874,43.98]
[1773305907619,11.91869005,85.904,85.874,43.98]
[1773305908009,11.91869005,85.904,85.874,54.459]
[1773305910219,11.91869005,85.904,85.874,43.98]
[1773305912223,0.07351009,85.905,85.89,2.52771489]
[1773305914625,0.07351009,85.905,85.882,10.478]
[1773305915419,12.01378054,85.905,85.875,10.479]
[1773305916024,12.01378054,85.905,85.87,46.50771489]
[1773305916025,12.01378054,85.905,85.87,43.98]
[1773305916828,12.01378054,85.905,85.87,46.50771489]
[1773305918929,12.01378054,85.905,85.878,10.479]
[1773305919430,12.01378054,85.905,85.87,46.50771489]
[1773305921029,12.01378054,85.905,85.873,10.479]
[1773305937138,12.01378054,85.905,85.87,46.50771489]
[1773305937139,0.07351009,85.905,85.88,13.00671489]
[1773305943047,0.07351009,85.905,85.88,2.52771489]
[1773305943242,11.98586093,85.905,85.873,10.479]
[1773305943947,11.98586093,85.905,85.867,10.48]
[1773305944543,11.91235084,85.905,85.867,10.48]
[1773305944938,10.476,85.904,85.867,10.48]
[1773305945142,11.91293809,85.903,85.867,10.48]
[1773305945545,10.476,85.902,85.866,43.98]
[1773305945744,11.94714621,85.901,85.866,43.98]
[1773305946948,0.07596603,85.892,85.866,43.98]
[1773305948238,0.07596603,85.892,85.867,10.48]
[1773305949245,0.07596603,85.892,85.87,2.52771489]
[1773305955354,0.07596603,85.892,85.867,10.48]
[1773305955355,0.07596603,85.892,85.88,2.52771489]
[1773305956158,0.07596603,85.892,85.87,2.52771489]
[1773305957661,0.07596603,85.892,85.87,2.52908398]
[1773305962667,0.07596603,85.892,85.866,43.98]
[1773305962869,10.477,85.891,85.866,43.98]
[1773305963466,0.07596603,85.892,85.866,43.98]
[1773305964864,10.478,85.89,85.866,43.98]
[1773305966970,22.52001469,85.89,85.866,43.98]
[1773305967174,11.18062231,85.887,85.851,11.08892343]
[1773305967374,11.18062231,85.887,85.852,43.98]
[1773305968274,11.18062231,85.887,85.853,11.08892343]
[1773305968871,10.478,85.885,85.853,11.08892343]
[1773305969778,0.07542686,85.878,85.853,11.08892343]
[1773305976687,13.18812164,85.927,85.852,43.98]
[1773305976989,13.18812164,85.927,85.88,2.52908398]
[1773305977487,13.06795982,85.912,85.87,2.52908398]
[1773305978084,13.06795982,85.912,85.88,2.52908398]
[1773305979390,10.475,85.91,85.88,2.52908398]
[1773305979591,13.10289787,85.909,85.88,2.52908398]
[1773305979990,13.10289787,85.909,85.862,10.481]
[1773305980294,13.10289787,85.909,85.87,2.52908398]
[1773305980889,13.1026025,85.907,85.87,2.52908398]
[1773305981491,13.11009409,85.926,85.88,0.07587299]
[1773305981993,13.11009409,85.926,85.87,2.52908398]
[1773305982289,13.11009409,85.926,85.88,2.52908398]
[1773305982985,13.1098222,85.913,85.894,0.07432341]
[1773305985282,13.12240876,85.938,85.9,2.52908398]
[1773305985487,13.12240876,85.938,85.894,0.07432341]
[1773305985888,13.12240876,85.938,85.89,2.52908398]
[1773305986896,10.472,85.936,85.89,2.52908398]
[1773305987096,13.12484444,85.935,85.89,2.52908398]
[1773305987894,13.04936626,85.961,85.875,21.57215515]
[1773305988094,13.04936626,85.961,85.91,2.52908398]
[1773305988894,13.0490026,85.952,85.91,2.52908398]
[1773305989997,13.0490026,85.952,85.887,21.57215515]
[1773305990193,13.0490026,85.952,85.9,2.52908398]
[1773305991000,12.99060635,85.949,85.9,2.52908398]
[1773305991206,12.99060635,85.949,85.917,0.07386748]
[1773305991902,12.9985548,85.944,85.917,0.07386748]
[1773305992995,12.9981229,85.942,85.917,0.07386748]
[1773305993896,12.99758472,85.938,85.9,2.52908398]
[1773305994102,12.99758472,85.938,85.893,10.477]
[1773305994899,10.472,85.937,85.893,10.477]
[1773305995202,12.96022484,85.936,85.893,10.477]
[1773305997609,0.07340607,85.923,85.893,10.477]
[1773305997906,0.07340607,85.923,85.876,21.57215515]
[1773305997907,12.97427815,85.953,85.876,21.57215515]
[1773305998106,13.01098119,85.949,85.89,2.52908398]
[1773305999010,23.48259939,85.932,85.891,10.477]
[1773305999209,13.01059939,85.931,85.891,10.477]
[1773306000305,20.934,85.977,85.87,2.52857326]
[1773306000306,12.91740817,85.928,85.87,2.52857326]
[1773306000510,12.91740817,85.928,85.84,28.81899245]
[1773306000511,12.91740817,85.928,85.88,2.52857326]
[1773306000910,12.91688442,85.927,85.89,2.52857326]
[1773306001106,9.04857978,85.976,85.895,0.07555439]
[1773306001310,12.99357375,85.944,85.895,0.07555439]
[1773306001813,12.99357375,85.944,85.89,2.52857326]
[1773306002013,12.99357375,85.934,85.892,10.477]
[1773306002514,12.99357375,85.934,85.88,2.52857326]
[1773306004118,2.52857326,85.94,85.881,10.478]
[1773306004119,12.88053045,85.927,85.881,10.478]
[1773306004720,12.88053045,85.927,85.895,0.07445699]
[1773306005016,12.84274486,85.912,85.874,10.479]
[1773306005318,12.84274486,85.912,85.875,0.09564831]
[1773306005915,11.66124039,85.891,85.84,11.55597319]
[1773306006112,11.66124039,85.889,85.84,11.55597319]
[1773306006323,11.66124039,85.879,85.84,11.55597319]
[1773306007517,11.66124039,85.925,85.84,14.08454645]
[1773306007817,11.66124039,85.899,85.84,14.08454645]
[1773306008016,11.66124039,85.888,85.84,11.55597319]
[1773306008818,0.07539733,85.873,85.84,11.55597319]
[1773306019231,10.55539733,85.873,85.84,11.55597319]
[1773306019428,0.07539733,85.873,85.84,11.55597319]
[1773306022633,0.07539733,85.873,85.841,10.483]
[1773306022932,0.07539733,85.873,85.842,12.2696114]
[1773306024829,13.07492812,85.872,85.841,10.483]
[1773306026334,13.07492812,85.872,85.841,22.7526114]
[1773306027933,0.07539733,85.873,85.8,2.02666698]
[1773306027934,13.07492812,85.869,85.801,12.2696114]
[1773306028333,13.07492812,85.859,85.801,12.2696114]
[1773306028528,13.07492812,85.85,85.801,12.2696114]
[1773306028738,15.60603598,85.85,85.801,12.2696114]
[1773306029035,13.07492812,85.838,85.801,12.2696114]
[1773306029232,13.07492812,85.838,85.803,10.488]
[1773306029632,13.07492812,85.838,85.803,22.7576114]
[1773306029937,13.07492812,85.838,85.806,10.488]
[1773306030135,0.07394616,85.839,85.807,12.2696114]
[1773306030637,0.07394616,85.839,85.811,12.2696114]
[1773306031336,23.55792812,85.849,85.811,12.2696114]
[1773306032033,0.07447468,85.839,85.811,12.2696114]
[1773306034337,13.1494028,85.839,85.8,12.2696114]
[1773306034526,13.1494028,85.839,85.79,2.53110786]
[1773306034527,13.1494028,85.839,85.79,14.80071926]
[1773306035339,10.485,85.832,85.794,10.489]
[1773306035538,13.1494028,85.839,85.795,12.2696114]
[1773306035935,13.07492812,85.839,85.795,12.2696114]
[1773306036639,10.484,85.833,85.795,12.2696114]
[1773306037527,0.07550617,85.823,85.795,12.2696114]
[1773306037733,0.07550617,85.823,85.8,14.80071926]
[1773306037935,13.07492812,85.852,85.811,12.2696114]
[1773306038833,10.483,85.849,85.811,12.2696114]
[1773306039439,13.07492812,85.849,85.821,0.07503569]
[1773306040140,23.55792812,85.842,85.821,0.07503569]
[1773306040742,10.483,85.849,85.821,0.07503569]
[1773306042240,13.07492812,85.841,85.821,0.07503569]
[1773306042638,10.484,85.84,85.821,0.07503569]
[1773306042940,13.20732415,85.839,85.798,13.44976657]
[1773306043136,23.69132415,85.836,85.798,13.44976657]
[1773306043341,13.20732415,85.835,85.798,13.44976657]
[1773306043840,10.484,85.834,85.798,13.44976657]
[1773306044035,10.484,85.834,85.808,0.07671255]
[1773306046137,10.485,85.829,85.808,0.07671255]
[1773306046342,13.20732415,85.835,85.808,0.07671255]
[1773306047542,13.20732415,85.83,85.775,13.44976657]
[1773306048145,10.487,85.814,85.775,13.44976657]
[1773306048650,23.69432415,85.814,85.775,13.44976657]
[1773306048841,13.20732415,85.813,85.775,13.44976657]
[1773306049040,0.07385654,85.803,85.775,13.44976657]
[1773306050148,0.07385654,85.803,85.78,2.53110786]
[1773306050354,12.95253209,85.836,85.791,13.58427868]
[1773306051652,12.95253209,85.836,85.78,2.53110786]
[1773306051950,10.485,85.829,85.789,13.58427868]
[1773306052349,10.485,85.829,85.799,0.07375607]
[1773306054753,12.95253209,85.822,85.799,0.07375607]
[1773306055252,12.95253209,85.822,85.778,13.58427868]
[1773306055957,10.487,85.814,85.778,13.58427868]
[1773306056559,10.487,85.814,85.787,0.07346864]
[1773306057663,23.43953209,85.814,85.787,0.07346864]
[1773306057850,12.95253209,85.813,85.787,0.07346864]
[1773306060360,12.95253209,85.813,85.764,24.07727868]
[1773306060561,12.95253209,85.808,85.765,13.58427868]
[1773306061660,12.95253209,85.808,85.77,16.11538654]
[1773306061865,12.95253209,85.808,85.772,13.58427868]
[1773306062363,0.07423388,85.809,85.772,13.58427868]
[1773306064868,0.07423388,85.809,85.78,13.58427868]